[Event "Titled Tuesday Blitz July 6 2021"]
[White "Costachi, Mihnea"]
[Black "Novikov, Evgenij"]
[WhiteFideId "1217518"]
[BlackFideId "4125380"]
[WhiteElo "2482"]
[BlackElo "2242"]
[Result "0-1"]
[Round "11"]
[TimeControl "180+1"]
[Date "2021.07.06"]
[WhiteClock "0:00:44"]
[BlackClock "0:00:20"]

1. f3 {[%clk 0:03:00]}  f6 {[%clk 0:02:54]} 2. Kf2 {[%clk 0:03:01]}  Kf7 {[%clk 0:02:54]} 3. Kg3 {[%clk 0:03:00]}  Kg6 {[%clk 0:02:54]} 4. Kh4 {[%clk 0:02:56]}  d5 {[%clk 0:02:47]} 5. Kg3 {[%clk 0:02:55]}  e5 {[%clk 0:02:39]} 6. e4 {[%clk 0:02:54]}  Bc5 {[%clk 0:02:31]} 7. exd5 {[%clk 0:02:44]}  Nh6 {[%clk 0:02:26]} 8. Bd3+ {[%clk 0:02:41]}  Bf5 {[%clk 0:02:24]} 9. Bc4 {[%clk 0:02:33]}  e4 {[%clk 0:02:10]} 10. Ne2 {[%clk 0:02:25]}  Qd6+ {[%clk 0:01:42]} 11. f4 {[%clk 0:02:21]}  Bg4 {[%clk 0:01:27]} 12. d3 {[%clk 0:01:19]}  Re8 {[%clk 0:01:02]} 13. dxe4 {[%clk 0:01:15]}  Rxe4 {[%clk 0:01:00]} 14. Bd3 {[%clk 0:01:15]}  Qxd5 {[%clk 0:00:39]} 15. Nec3 {[%clk 0:00:57]}  Nf5+ {[%clk 0:00:24]} 16. Kxg4 {[%clk 0:00:54]}  Rxf4+ {[%clk 0:00:24]} 17. Kxf4 {[%clk 0:00:46]}  Bd6+ {[%clk 0:00:20]} 18. Kg4 {[%clk 0:00:44]}  Qxg2# {[%clk 0:00:20]} 0-1


[Site "https://www.chess.com"]

[Event "Titled Tuesday Blitz July 6 2021"]
[White "Cunjalo, Faris"]
[Black "Oliveira, Silvio Eduardo"]
[WhiteFideId "14410710"]
[BlackFideId "2111560"]
[WhiteElo "2234"]
[BlackElo "2302"]
[Result "0-1"]
[Round "11"]
[TimeControl "180+1"]
[Date "2021.07.06"]
[WhiteClock "0:00:11"]
[BlackClock "0:00:24"]

1. d4 {[%clk 0:03:00]}  Nf6 {[%clk 0:02:59]} 2. c4 {[%clk 0:03:01]}  e6 {[%clk 0:03:00]} 3. Nf3 {[%clk 0:03:02]}  d5 {[%clk 0:03:01]} 4. Nc3 {[%clk 0:03:03]}  Be7 {[%clk 0:03:01]} 5. g3 {[%clk 0:03:02]}  O-O {[%clk 0:03:01]} 6. Bg2 {[%clk 0:03:02]}  dxc4 {[%clk 0:03:01]} 7. Ne5 {[%clk 0:03:03]}  c5 {[%clk 0:02:59]} 8. dxc5 {[%clk 0:03:04]}  Qxd1+ {[%clk 0:02:55]} 9. Nxd1 {[%clk 0:03:05]}  Bxc5 {[%clk 0:02:52]} 10. O-O {[%clk 0:03:05]}  Nbd7 {[%clk 0:02:50]} 11. Nxc4 {[%clk 0:03:05]}  Nb6 {[%clk 0:02:50]} 12. Ne5 {[%clk 0:03:03]}  Bd4 {[%clk 0:02:43]} 13. Nd3 {[%clk 0:03:00]}  Nbd5 {[%clk 0:02:42]} 14. Bd2 {[%clk 0:02:35]}  a5 {[%clk 0:02:40]} 15. Rc1 {[%clk 0:02:31]}  a4 {[%clk 0:02:36]} 16. e4 {[%clk 0:02:08]}  Ne7 {[%clk 0:02:31]} 17. Nc3 {[%clk 0:01:39]}  Rd8 {[%clk 0:02:24]} 18. Rfd1 {[%clk 0:01:36]}  Nc6 {[%clk 0:02:06]} 19. Nb5 {[%clk 0:01:29]}  Bb6 {[%clk 0:02:01]} 20. Bc3 {[%clk 0:01:28]}  Ne8 {[%clk 0:01:02]} 21. Ne5 {[%clk 0:00:57]}  Nxe5 {[%clk 0:00:58]} 22. Rxd8 {[%clk 0:00:50]}  Bxd8 {[%clk 0:00:59]} 23. Bxe5 {[%clk 0:00:51]}  Bd7 {[%clk 0:00:59]} 24. Bf1 {[%clk 0:00:52]}  Bc6 {[%clk 0:00:59]} 25. f3 {[%clk 0:00:49]}  Bb6+ {[%clk 0:00:57]} 26. Kg2 {[%clk 0:00:50]}  f6 {[%clk 0:00:50]} 27. Bc3 {[%clk 0:00:34]}  Rd8 {[%clk 0:00:50]} 28. Bc4 {[%clk 0:00:32]}  Kf7 {[%clk 0:00:49]} 29. Kf1 {[%clk 0:00:27]}  h5 {[%clk 0:00:49]} 30. Ke2 {[%clk 0:00:26]}  Nd6 {[%clk 0:00:38]} 31. Nxd6+ {[%clk 0:00:27]}  Rxd6 {[%clk 0:00:38]} 32. e5 {[%clk 0:00:14]}  Rd8 {[%clk 0:00:35]} 33. Rc2 {[%clk 0:00:09]}  h4 {[%clk 0:00:32]} 34. g4 {[%clk 0:00:09]}  Bg1 {[%clk 0:00:26]} 35. h3 {[%clk 0:00:09]}  Bh2 {[%clk 0:00:23]} 36. exf6 {[%clk 0:00:09]}  gxf6 {[%clk 0:00:23]} 37. Rd2 {[%clk 0:00:09]}  Rc8 {[%clk 0:00:23]} 38. Bd3 {[%clk 0:00:06]}  Bf4 {[%clk 0:00:23]} 39. Rd1 {[%clk 0:00:06]}  Bd5 {[%clk 0:00:23]} 40. a3 {[%clk 0:00:06]}  Bb3 {[%clk 0:00:23]} 41. Re1 {[%clk 0:00:07]}  Rd8 {[%clk 0:00:22]} 42. Be4 {[%clk 0:00:06]}  b5 {[%clk 0:00:20]} 43. Bd3 {[%clk 0:00:07]}  Bg3 {[%clk 0:00:20]} 44. Rg1 {[%clk 0:00:06]}  Bc4 {[%clk 0:00:17]} 45. Bxc4 {[%clk 0:00:06]}  bxc4 {[%clk 0:00:18]} 46. Rf1 {[%clk 0:00:02]}  e5 {[%clk 0:00:18]} 47. Bd2 {[%clk 0:00:02]}  Ke6 {[%clk 0:00:18]} 48. Rc1 {[%clk 0:00:02]}  Kd5 {[%clk 0:00:18]} 49. Be3 {[%clk 0:00:02]}  Rb8 {[%clk 0:00:18]} 50. Rc2 {[%clk 0:00:02]}  Rb3 {[%clk 0:00:19]} 51. Bd2 {[%clk 0:00:02]}  Rd3 {[%clk 0:00:18]} 52. Bc3 {[%clk 0:00:01]}  Bf4 {[%clk 0:00:18]} 53. Bb4 {[%clk 0:00:02]}  Rd4 {[%clk 0:00:18]} 54. Bc3 {[%clk 0:00:02]}  Rd3 {[%clk 0:00:18]} 55. Kf2 {[%clk 0:00:02]}  Be3+ {[%clk 0:00:18]} 56. Ke2 {[%clk 0:00:03]}  Bd4 {[%clk 0:00:19]} 57. Bb4 {[%clk 0:00:03]}  Rb3 {[%clk 0:00:19]} 58. Bc3 {[%clk 0:00:04]}  Bxc3 {[%clk 0:00:19]} 59. bxc3 {[%clk 0:00:04]}  Rxa3 {[%clk 0:00:19]} 60. Kd2 {[%clk 0:00:05]}  Rb3 {[%clk 0:00:19]} 61. Ra2 {[%clk 0:00:05]}  a3 {[%clk 0:00:20]} 62. Kc2 {[%clk 0:00:05]}  Rb2+ {[%clk 0:00:20]} 63. Rxb2 {[%clk 0:00:06]}  axb2 {[%clk 0:00:21]} 64. Kxb2 {[%clk 0:00:06]}  e4 {[%clk 0:00:22]} 65. f4 {[%clk 0:00:07]}  e3 {[%clk 0:00:22]} 66. Kc2 {[%clk 0:00:07]}  Ke4 {[%clk 0:00:22]} 67. g5 {[%clk 0:00:08]}  fxg5 {[%clk 0:00:23]} 68. fxg5 {[%clk 0:00:09]}  Kf5 {[%clk 0:00:23]} 69. Kd1 {[%clk 0:00:10]}  Kxg5 {[%clk 0:00:23]} 70. Ke2 {[%clk 0:00:11]}  Kf4 {[%clk 0:00:24]} 0-1


[Site "https://www.chess.com"]

[Event "Titled Tuesday Blitz July 6 2021"]
[White "Dobre, Claudiu-Cristian"]
[Black "Grebeniuk, Semen"]
[WhiteFideId "1211854"]
[BlackFideId "14117509"]
[WhiteElo "2259"]
[BlackElo "2232"]
[Result "1-0"]
[Round "11"]
[TimeControl "180+1"]
[Date "2021.07.06"]
[WhiteClock "0:01:15"]
[BlackClock "0:00:14"]

1. c4 {[%clk 0:03:00]}  f5 {[%clk 0:02:59]} 2. Nf3 {[%clk 0:03:00]}  Nf6 {[%clk 0:03:00]} 3. g3 {[%clk 0:03:00]}  d6 {[%clk 0:03:00]} 4. Bg2 {[%clk 0:03:00]}  g6 {[%clk 0:03:01]} 5. O-O {[%clk 0:02:59]}  Bg7 {[%clk 0:03:02]} 6. b4 {[%clk 0:02:55]}  O-O {[%clk 0:03:03]} 7. Bb2 {[%clk 0:02:54]}  a5 {[%clk 0:03:04]} 8. b5 {[%clk 0:02:53]}  e5 {[%clk 0:03:05]} 9. d3 {[%clk 0:02:53]}  h6 {[%clk 0:03:04]} 10. a4 {[%clk 0:02:51]}  Nbd7 {[%clk 0:02:59]} 11. Nfd2 {[%clk 0:02:41]}  Nc5 {[%clk 0:02:56]} 12. Nb3 {[%clk 0:02:40]}  Ne6 {[%clk 0:02:48]} 13. c5 {[%clk 0:02:37]}  Rb8 {[%clk 0:02:32]} 14. N1d2 {[%clk 0:02:36]}  Nd7 {[%clk 0:02:23]} 15. c6 {[%clk 0:02:31]}  bxc6 {[%clk 0:02:20]} 16. Nxa5 {[%clk 0:02:30]}  cxb5 {[%clk 0:01:33]} 17. Nc6 {[%clk 0:02:29]}  Qg5 {[%clk 0:01:32]} 18. Nxb8 {[%clk 0:02:22]}  Nxb8 {[%clk 0:01:33]} 19. axb5 {[%clk 0:02:22]}  Nd7 {[%clk 0:01:27]} 20. Ra8 {[%clk 0:02:20]}  Nb6 {[%clk 0:01:15]} 21. Ra7 {[%clk 0:02:16]}  Bd7 {[%clk 0:01:10]} 22. Qb3 {[%clk 0:02:14]}  Kh8 {[%clk 0:01:08]} 23. Nc4 {[%clk 0:02:10]}  Nc8 {[%clk 0:00:58]} 24. Ra8 {[%clk 0:02:02]}  Nc5 {[%clk 0:00:55]} 25. Qb4 {[%clk 0:02:02]}  f4 {[%clk 0:00:32]} 26. b6 {[%clk 0:02:00]}  cxb6 {[%clk 0:00:23]} 27. Nxb6 {[%clk 0:01:57]}  Nxb6 {[%clk 0:00:19]} 28. Qxb6 {[%clk 0:01:49]}  Rxa8 {[%clk 0:00:15]} 29. Bxa8 {[%clk 0:01:48]}  fxg3 {[%clk 0:00:16]} 30. hxg3 {[%clk 0:01:47]}  Bh3 {[%clk 0:00:16]} 31. Bg2 {[%clk 0:01:40]}  Bxg2 {[%clk 0:00:16]} 32. Kxg2 {[%clk 0:01:40]}  Qd2 {[%clk 0:00:17]} 33. Qxd6 {[%clk 0:01:25]}  Qxb2 {[%clk 0:00:17]} 34. Qxc5 {[%clk 0:01:25]}  Qxe2 {[%clk 0:00:17]} 35. Qc4 {[%clk 0:01:16]}  h5 {[%clk 0:00:14]} 36. Rb1 {[%clk 0:01:15]} 1-0


[Site "https://www.chess.com"]

[Event "Titled Tuesday Blitz July 6 2021"]
[White "Dobrov, Vladimir"]
[Black "Jobava, Baadur"]
[WhiteFideId "4136594"]
[BlackFideId "13601520"]
[WhiteElo "2614"]
[BlackElo "2748"]
[Result "0-1"]
[Round "11"]
[TimeControl "180+1"]
[Date "2021.07.06"]
[WhiteClock "0:00:30"]
[BlackClock "0:02:12"]

1. e4 {[%clk 0:03:00]}  e5 {[%clk 0:02:55]} 2. Nf3 {[%clk 0:03:00]}  Nf6 {[%clk 0:02:55]} 3. Nxe5 {[%clk 0:02:53]}  d6 {[%clk 0:02:55]} 4. Nf3 {[%clk 0:02:52]}  Nxe4 {[%clk 0:02:55]} 5. Nc3 {[%clk 0:02:52]}  Nxc3 {[%clk 0:02:55]} 6. dxc3 {[%clk 0:02:53]}  Be7 {[%clk 0:02:55]} 7. Be3 {[%clk 0:02:53]}  Nc6 {[%clk 0:02:56]} 8. Qd2 {[%clk 0:02:49]}  Bf5 {[%clk 0:02:55]} 9. O-O-O {[%clk 0:02:48]}  O-O {[%clk 0:02:55]} 10. h4 {[%clk 0:02:48]}  Qd7 {[%clk 0:02:53]} 11. h5 {[%clk 0:02:40]}  Rfe8 {[%clk 0:02:51]} 12. Nh4 {[%clk 0:02:30]}  Be6 {[%clk 0:02:36]} 13. b3 {[%clk 0:01:56]}  Bf6 {[%clk 0:02:29]} 14. Bd3 {[%clk 0:01:40]}  Ne5 {[%clk 0:02:26]} 15. Be4 {[%clk 0:01:37]}  Nc4 {[%clk 0:02:15]} 16. bxc4 {[%clk 0:01:30]}  Qa4 {[%clk 0:02:14]} 17. Qd3 {[%clk 0:00:30]}  Bxc4 {[%clk 0:02:12]} 18. Bxh7+ {[%clk 0:00:30]}  Kf8 {[%clk 0:02:12]} 0-1


[Site "https://www.chess.com"]

[Event "Titled Tuesday Blitz July 6 2021"]
[White "Dubov, Daniil"]
[Black "Le, Tuan Minh"]
[WhiteFideId "24126055"]
[BlackFideId "12401153"]
[WhiteElo "2722"]
[BlackElo "2450"]
[Result "1-0"]
[Round "11"]
[TimeControl "180+1"]
[Date "2021.07.06"]
[WhiteClock "0:01:33"]
[BlackClock "0:00:01"]

1. d4 {[%clk 0:03:00]}  d5 {[%clk 0:02:57]} 2. c4 {[%clk 0:03:00]}  c6 {[%clk 0:02:58]} 3. Nf3 {[%clk 0:03:00]}  Nf6 {[%clk 0:02:57]} 4. Nc3 {[%clk 0:03:01]}  a6 {[%clk 0:02:52]} 5. g3 {[%clk 0:03:01]}  Bf5 {[%clk 0:02:52]} 6. Bg2 {[%clk 0:03:01]}  e6 {[%clk 0:02:52]} 7. Nh4 {[%clk 0:02:59]}  Bg4 {[%clk 0:02:52]} 8. h3 {[%clk 0:02:59]}  Bh5 {[%clk 0:02:53]} 9. g4 {[%clk 0:02:59]}  Nfd7 {[%clk 0:02:53]} 10. Qb3 {[%clk 0:02:49]}  b5 {[%clk 0:02:41]} 11. cxd5 {[%clk 0:02:48]}  cxd5 {[%clk 0:02:41]} 12. Nxd5 {[%clk 0:02:48]}  exd5 {[%clk 0:02:21]} 13. Qxd5 {[%clk 0:02:46]}  Bb4+ {[%clk 0:02:06]} 14. Kf1 {[%clk 0:02:45]}  Qxh4 {[%clk 0:02:06]} 15. Bg5 {[%clk 0:02:43]}  Qxg5 {[%clk 0:00:49]} 16. Qxg5 {[%clk 0:02:41]}  Ra7 {[%clk 0:00:48]} 17. Qxg7 {[%clk 0:02:37]}  Rf8 {[%clk 0:00:47]} 18. gxh5 {[%clk 0:02:37]}  Rc7 {[%clk 0:00:47]} 19. Qxh7 {[%clk 0:02:34]}  Nf6 {[%clk 0:00:41]} 20. Qf5 {[%clk 0:02:15]}  Be7 {[%clk 0:00:29]} 21. Bf3 {[%clk 0:02:13]}  Nbd7 {[%clk 0:00:24]} 22. e3 {[%clk 0:02:08]}  Rg8 {[%clk 0:00:10]} 23. Ke2 {[%clk 0:02:07]}  Nf8 {[%clk 0:00:09]} 24. Rac1 {[%clk 0:02:05]}  Rd7 {[%clk 0:00:07]} 25. Bc6 {[%clk 0:02:02]}  Ne6 {[%clk 0:00:06]} 26. Bxd7+ {[%clk 0:01:54]}  Nxd7 {[%clk 0:00:07]} 27. Rc8+ {[%clk 0:01:52]}  Bd8 {[%clk 0:00:07]} 28. h6 {[%clk 0:01:48]}  Rh8 {[%clk 0:00:03]} 29. h7 {[%clk 0:01:41]}  Ke7 {[%clk 0:00:02]} 30. Rg1 {[%clk 0:01:39]}  Nef8 {[%clk 0:00:02]} 31. Rg8 {[%clk 0:01:33]}  Rxh7 {[%clk 0:00:02]} 32. Rxd8 {[%clk 0:01:33]}  Kxd8 {[%clk 0:00:01]} 33. Qxh7 {[%clk 0:01:33]} 1-0


[Site "https://www.chess.com"]

[Event "Titled Tuesday Blitz July 6 2021"]
[White "Dushyant Sharma"]
[Black "Tomiello, Mateus Costamilan"]
[WhiteFideId "25065130"]
[BlackFideId "22701958"]
[WhiteElo "2019"]
[BlackElo "1995"]
[Result "0-1"]
[Round "11"]
[TimeControl "180+1"]
[Date "2021.07.06"]
[WhiteClock "0:00:06"]
[BlackClock "0:00:28"]

1. e4 {[%clk 0:03:00]}  e5 {[%clk 0:03:00]} 2. Nf3 {[%clk 0:03:00]}  Nc6 {[%clk 0:03:00]} 3. Nc3 {[%clk 0:03:01]}  Nf6 {[%clk 0:02:59]} 4. Bb5 {[%clk 0:03:01]}  Nd4 {[%clk 0:02:53]} 5. Ba4 {[%clk 0:03:01]}  Nxf3+ {[%clk 0:02:49]} 6. Qxf3 {[%clk 0:03:02]}  Bc5 {[%clk 0:02:49]} 7. d3 {[%clk 0:03:00]}  O-O {[%clk 0:02:33]} 8. Bg5 {[%clk 0:02:55]}  c6 {[%clk 0:02:33]} 9. Bb3 {[%clk 0:02:50]}  d6 {[%clk 0:02:31]} 10. h3 {[%clk 0:02:41]}  Be6 {[%clk 0:02:31]} 11. Ne2 {[%clk 0:02:36]}  h6 {[%clk 0:02:20]} 12. h4 {[%clk 0:02:13]}  Qa5+ {[%clk 0:01:44]} 13. Bd2 {[%clk 0:01:57]}  Qb6 {[%clk 0:01:35]} 14. Be3 {[%clk 0:01:00]}  Bxe3 {[%clk 0:01:18]} 15. fxe3 {[%clk 0:00:58]}  Qa5+ {[%clk 0:01:11]} 16. Kf2 {[%clk 0:00:44]}  Ng4+ {[%clk 0:01:08]} 17. Kg3 {[%clk 0:00:44]}  h5 {[%clk 0:01:03]} 18. Rhf1 {[%clk 0:00:31]}  Qd2 {[%clk 0:00:53]} 19. Rfd1 {[%clk 0:00:18]}  Qxe3 {[%clk 0:00:46]} 20. Qxe3 {[%clk 0:00:17]}  Nxe3 {[%clk 0:00:46]} 21. Rd2 {[%clk 0:00:18]}  d5 {[%clk 0:00:38]} 22. d4 {[%clk 0:00:17]}  dxe4 {[%clk 0:00:33]} 23. Bxe6 {[%clk 0:00:17]}  fxe6 {[%clk 0:00:32]} 24. dxe5 {[%clk 0:00:17]}  Nf1+ {[%clk 0:00:31]} 25. Rxf1 {[%clk 0:00:15]}  Rxf1 {[%clk 0:00:32]} 26. Rd6 {[%clk 0:00:12]}  Raf8 {[%clk 0:00:30]} 27. Rxe6 {[%clk 0:00:10]}  R1f2 {[%clk 0:00:31]} 28. Nc3 {[%clk 0:00:09]}  e3 {[%clk 0:00:30]} 29. Re7 {[%clk 0:00:06]}  e2 {[%clk 0:00:29]} 30. Nxe2 {[%clk 0:00:05]}  Rxe2 {[%clk 0:00:29]} 31. e6 {[%clk 0:00:06]}  Rf6 {[%clk 0:00:28]} 32. Re8+ {[%clk 0:00:06]}  Kh7 {[%clk 0:00:29]} 33. e7 {[%clk 0:00:07]}  Rfe6 {[%clk 0:00:29]} 34. Rb8 {[%clk 0:00:06]}  Rxe7 {[%clk 0:00:28]} 35. b3 {[%clk 0:00:05]}  R7e3+ {[%clk 0:00:29]} 36. Kf4 {[%clk 0:00:05]}  Re4+ {[%clk 0:00:29]} 37. Kf3 {[%clk 0:00:06]}  R2e3+ {[%clk 0:00:29]} 38. Kf2 {[%clk 0:00:06]}  Rc3 {[%clk 0:00:29]} 39. Rxb7 {[%clk 0:00:05]}  Rxc2+ {[%clk 0:00:30]} 40. Kf3 {[%clk 0:00:06]}  Rg4 {[%clk 0:00:28]} 41. Rxa7 {[%clk 0:00:05]}  Rcxg2 {[%clk 0:00:28]} 42. Rc7 {[%clk 0:00:05]}  R2g3+ {[%clk 0:00:28]} 43. Kf2 {[%clk 0:00:05]}  Rc3 {[%clk 0:00:29]} 44. a4 {[%clk 0:00:05]}  Rb4 {[%clk 0:00:27]} 45. a5 {[%clk 0:00:05]}  Rbxb3 {[%clk 0:00:28]} 46. a6 {[%clk 0:00:06]}  Rb2+ {[%clk 0:00:28]} 0-1


[Site "https://www.chess.com"]

[Event "Titled Tuesday Blitz July 6 2021"]
[White "Flores Quillas, Diego Saul Rodri"]
[Black "Gunina, Valentina"]
[WhiteFideId "3822508"]
[BlackFideId "4167570"]
[WhiteElo "2071"]
[BlackElo "2399"]
[Result "0-1"]
[Round "11"]
[TimeControl "180+1"]
[Date "2021.07.06"]
[WhiteClock "0:00:32"]
[BlackClock "0:02:27"]

1. e4 {[%clk 0:02:59]}  c6 {[%clk 0:03:00]} 2. d4 {[%clk 0:02:58]}  d5 {[%clk 0:03:00]} 3. Nc3 {[%clk 0:02:58]}  dxe4 {[%clk 0:03:00]} 4. Nxe4 {[%clk 0:02:58]}  Nf6 {[%clk 0:03:01]} 5. Nxf6+ {[%clk 0:02:58]}  exf6 {[%clk 0:03:01]} 6. c3 {[%clk 0:02:58]}  Bd6 {[%clk 0:03:02]} 7. Bd3 {[%clk 0:02:58]}  O-O {[%clk 0:03:02]} 8. Qc2 {[%clk 0:02:58]}  Re8+ {[%clk 0:03:02]} 9. Ne2 {[%clk 0:02:58]}  h5 {[%clk 0:03:03]} 10. Be3 {[%clk 0:02:55]}  Nd7 {[%clk 0:03:03]} 11. O-O-O {[%clk 0:02:55]}  Nf8 {[%clk 0:03:02]} 12. h3 {[%clk 0:02:52]}  Be6 {[%clk 0:03:02]} 13. Kb1 {[%clk 0:02:52]}  Qa5 {[%clk 0:03:00]} 14. b3 {[%clk 0:02:52]}  Ng6 {[%clk 0:02:52]} 15. Rdg1 {[%clk 0:02:29]}  f5 {[%clk 0:02:51]} 16. Bd2 {[%clk 0:02:23]}  Qc7 {[%clk 0:02:37]} 17. c4 {[%clk 0:01:51]}  a5 {[%clk 0:02:36]} 18. Nc3 {[%clk 0:01:50]}  Qd7 {[%clk 0:02:36]} 19. d5 {[%clk 0:01:45]}  cxd5 {[%clk 0:02:33]} 20. cxd5 {[%clk 0:01:46]}  Bxd5 {[%clk 0:02:31]} 21. Nxd5 {[%clk 0:01:45]}  Be5 {[%clk 0:02:31]} 22. f4 {[%clk 0:00:33]}  Bd4 {[%clk 0:02:28]} 23. Nc3 {[%clk 0:00:31]}  Bxg1 {[%clk 0:02:27]} 24. Rxg1 {[%clk 0:00:32]}  Red8 {[%clk 0:02:27]} 0-1


[Site "https://www.chess.com"]

[Event "Titled Tuesday Blitz July 6 2021"]
[White "Gontcharov, Vladislav"]
[Black "Kokoszczynski, Jan"]
[WhiteFideId "4123492"]
[BlackFideId "1174460"]
[WhiteElo "2503"]
[BlackElo "2166"]
[Result "0-1"]
[Round "11"]
[TimeControl "180+1"]
[Date "2021.07.06"]
[WhiteClock "0:00:10"]
[BlackClock "0:00:14"]

1. e4 {[%clk 0:03:00]}  c5 {[%clk 0:02:58]} 2. Nf3 {[%clk 0:03:00]}  Nc6 {[%clk 0:02:58]} 3. d4 {[%clk 0:03:00]}  cxd4 {[%clk 0:02:58]} 4. Nxd4 {[%clk 0:03:01]}  e5 {[%clk 0:02:59]} 5. Nb5 {[%clk 0:03:00]}  d6 {[%clk 0:02:59]} 6. c4 {[%clk 0:02:57]}  g6 {[%clk 0:02:58]} 7. g3 {[%clk 0:02:51]}  Be6 {[%clk 0:02:57]} 8. b3 {[%clk 0:02:48]}  a6 {[%clk 0:02:56]} 9. N5c3 {[%clk 0:02:48]}  Bg7 {[%clk 0:02:56]} 10. Bg2 {[%clk 0:02:47]}  Nf6 {[%clk 0:02:57]} 11. O-O {[%clk 0:02:46]}  O-O {[%clk 0:02:56]} 12. h3 {[%clk 0:02:46]}  Rc8 {[%clk 0:02:53]} 13. Be3 {[%clk 0:02:45]}  b5 {[%clk 0:02:15]} 14. cxb5 {[%clk 0:02:42]}  Nd4 {[%clk 0:02:16]} 15. bxa6 {[%clk 0:02:36]}  Qa5 {[%clk 0:02:09]} 16. Bd2 {[%clk 0:02:10]}  Qxa6 {[%clk 0:02:08]} 17. b4 {[%clk 0:01:19]}  Rfd8 {[%clk 0:01:56]} 18. b5 {[%clk 0:01:07]}  Qa7 {[%clk 0:01:45]} 19. a4 {[%clk 0:01:02]}  d5 {[%clk 0:01:13]} 20. exd5 {[%clk 0:00:57]}  Nxd5 {[%clk 0:01:13]} 21. Nxd5 {[%clk 0:00:57]}  Bxd5 {[%clk 0:01:14]} 22. Bxd5 {[%clk 0:00:54]}  Rxd5 {[%clk 0:01:15]} 23. Nc3 {[%clk 0:00:54]}  Rd7 {[%clk 0:01:11]} 24. Ne4 {[%clk 0:00:38]}  f5 {[%clk 0:00:50]} 25. Nc3 {[%clk 0:00:26]}  Qb7 {[%clk 0:00:42]} 26. f4 {[%clk 0:00:19]}  e4 {[%clk 0:00:39]} 27. Qe1 {[%clk 0:00:18]}  Nc2 {[%clk 0:00:31]} 28. Qe2 {[%clk 0:00:18]}  Nxa1 {[%clk 0:00:26]} 29. Rxa1 {[%clk 0:00:19]}  Bxc3 {[%clk 0:00:26]} 30. Bxc3 {[%clk 0:00:18]}  Rxc3 {[%clk 0:00:27]} 31. a5 {[%clk 0:00:18]}  Rxg3+ {[%clk 0:00:25]} 32. Kh2 {[%clk 0:00:18]}  Rgd3 {[%clk 0:00:25]} 33. Ra2 {[%clk 0:00:17]}  e3 {[%clk 0:00:25]} 34. Kg3 {[%clk 0:00:15]}  Qe4 {[%clk 0:00:19]} 35. a6 {[%clk 0:00:14]}  R7d4 {[%clk 0:00:19]} 36. a7 {[%clk 0:00:12]}  Qxf4+ {[%clk 0:00:18]} 37. Kg2 {[%clk 0:00:12]}  Qe4+ {[%clk 0:00:17]} 38. Qf3 {[%clk 0:00:12]}  Rd2+ {[%clk 0:00:15]} 39. Kg3 {[%clk 0:00:13]}  f4+ {[%clk 0:00:14]} 40. Kh4 {[%clk 0:00:12]}  Qxf3 {[%clk 0:00:12]} 41. a8=Q+ {[%clk 0:00:11]}  Qxa8 {[%clk 0:00:12]} 42. Rxa8+ {[%clk 0:00:11]}  Rd8 {[%clk 0:00:13]} 43. Ra7 {[%clk 0:00:11]}  e2 {[%clk 0:00:12]} 44. Re7 {[%clk 0:00:11]}  f3 {[%clk 0:00:13]} 45. Kg5 {[%clk 0:00:11]}  f2 {[%clk 0:00:13]} 46. Kh6 {[%clk 0:00:10]}  f1=Q {[%clk 0:00:13]} 47. Rg7+ {[%clk 0:00:10]}  Kf8 {[%clk 0:00:13]} 48. Rxh7 {[%clk 0:00:10]}  Qxh3+ {[%clk 0:00:14]} 49. Kxg6 {[%clk 0:00:10]}  Qd3+ {[%clk 0:00:12]} 50. Kg5 {[%clk 0:00:10]}  Qxh7 {[%clk 0:00:13]} 51. b6 {[%clk 0:00:09]}  e1=Q {[%clk 0:00:13]} 52. b7 {[%clk 0:00:10]}  Qeh4# {[%clk 0:00:14]} 0-1


[Site "https://www.chess.com"]